bitfinex/quotes_SOLUSD_20260113
["timestamp","ask_amount","ask_price","bid_price","bid_amount"]
[1768297115912,2.04109927,141.63,141.61,0.71367143]
[1768297116112,2.69981998,141.64,141.61,0.71367143]
[1768297116313,2.04109927,141.64,141.61,0.71367143]
[1768297116889,7.71886207,141.65,141.61,7.77529253]
[1768297117092,2.04109927,141.64,141.61,0.71367143]
[1768297118002,2.04109927,141.63,141.61,0.71367143]
[1768297118404,2.04109927,141.64,141.61,0.71367143]
[1768297120106,2.04109927,141.63,141.61,0.71367143]
[1768297120432,2.04109927,141.63,141.61,13.59367143]
[1768297120793,2.04109927,141.64,141.61,13.59367143]
[1768297122620,9.75955808,141.65,141.61,13.59367143]
[1768297122996,7.71845881,141.65,141.61,13.59367143]
[1768297123213,9.75955808,141.65,141.61,13.59367143]
[1768297123825,7.71747956,141.67,141.62,0.71367143]
[1768297123999,2.04109927,141.66,141.62,0.71367143]
[1768297124400,9.75857883,141.67,141.63,0.71367143]
[1768297124612,2.04109927,141.66,141.63,0.71367143]
[1768297125213,9.75857883,141.67,141.63,0.71367143]
[1768297125416,7.71747956,141.67,141.63,0.71367143]
[1768297125616,9.75857883,141.67,141.63,0.71367143]
[1768297125819,1.94872071,141.69,141.64,0.71367143]
[1768297126099,2.04109927,141.68,141.64,0.71367143]
[1768297126300,2.69981998,141.68,141.64,13.59367143]
[1768297126726,1.94872071,141.69,141.65,0.71367143]
[1768297126927,2.04109927,141.68,141.65,0.71367143]
[1768297127724,9.00681503,141.69,141.65,0.71367143]
[1768297128027,2.04109927,141.68,141.65,0.71367143]
[1768297129835,9.00681503,141.69,141.65,0.71367143]
[1768297130014,2.04109927,141.68,141.65,0.71367143]
[1768297130746,9.00681503,141.69,141.65,2.7547707]
[1768297131027,11.0479143,141.69,141.65,0.71367143]
[1768297132412,7.71737815,141.67,141.63,0.71367143]
[1768297132611,9.75847742,141.67,141.63,13.59367143]
[1768297133535,10.90873954,141.67,141.63,13.59367143]
[1768297133826,10.90873954,141.67,141.64,0.71367143]
[1768297134519,3.19136139,141.66,141.63,13.59367143]
[1768297134722,10.90873954,141.67,141.63,13.59367143]
[1768297134935,10.90873954,141.67,141.64,0.71367143]
[1768297135317,7.71737815,141.67,141.64,0.71367143]
[1768297136712,7.71737815,141.67,141.64,13.59367143]
[1768297136923,11.53915132,141.69,141.65,0.71367143]
[1768297137240,8.34778993,141.69,141.66,0.71367143]
[1768297137736,9.00651064,141.69,141.66,0.71367143]
[1768297141242,1.29,141.69,141.67,0.71367143]
[1768297141743,1.29,141.69,141.67,13.59367143]
[1768297144333,1.29,141.69,141.68,0.71367143]
[1768297144640,1.29,141.69,141.67,13.59367143]
[1768297144942,2.00687498,141.69,141.67,12.88]
[1768297145246,1.29,141.69,141.67,13.57494513]
[1768297145737,10.96495076,141.71,141.67,3.40912428]
[1768297145738,0.71687498,141.71,141.67,3.40912428]
[1768297145945,0.71687498,141.71,141.68,12.88]
[1768297145946,3.16611028,141.71,141.68,12.88]
[1768297146620,25.40850127,141.75,141.68,12.88]
[1768297146822,3.19136139,141.71,141.68,12.88]
[1768297147033,3.19136139,141.72,141.68,12.88]
[1768297147236,3.19136139,141.71,141.65,7.05949498]
[1768297147423,0.71687498,141.7,141.66,16.07136139]
[1768297148538,0.71687498,141.7,141.67,3.19136139]
[1768297148720,0.71687498,141.7,141.66,12.88]
[1768297149040,0.71687498,141.7,141.67,3.19136139]
[1768297150044,7.77407417,141.7,141.66,16.07136139]
[1768297151234,7.77407417,141.7,141.66,23.34826586]
[1768297151453,0.71687498,141.69,141.65,0.21776289]
[1768297151652,3.90823637,141.69,141.66,12.88]
[1768297154251,0.71687498,141.69,141.66,12.88]
[1768297155150,0.71687498,141.69,141.66,16.07136139]
[1768297156853,0.6746847,141.7,141.67,3.40912428]
[1768297157149,0.6746847,141.71,141.67,3.40912428]
[1768297158458,0.6746847,141.7,141.67,3.19136139]
[1768297159251,0.6746847,141.69,141.68,12.88]
[1768297159954,0.6746847,141.69,141.67,12.88]
[1768297161753,0.6746847,141.71,141.67,23.34766415]
[1768297161956,0.6746847,141.71,141.67,20.15630276]
[1768297162259,0.6746847,141.71,141.67,23.34766415]
[1768297164651,7.73135062,141.71,141.67,23.34766415]
[1768297165479,0.6746847,141.7,141.67,16.07136139]
[1768297166055,0.6746847,141.7,141.67,12.88]
[1768297166259,0.6746847,141.7,141.67,16.07136139]
[1768297170972,0.6746847,141.7,141.67,23.12998664]
[1768297171657,0.6746847,141.7,141.68,3.19136139]
[1768297172065,7.73103266,141.72,141.69,3.19136139]
[1768297172261,7.05634796,141.72,141.7,3.19136139]
[1768297172463,7.70578451,141.72,141.7,12.88]
[1768297172994,7.70578451,141.72,141.7,16.07136139]
[1768297173362,7.70578451,141.72,141.7,12.88]
[1768297176675,7.70578451,141.72,141.7,16.07136139]
[1768297177058,7.70578451,141.72,141.7,12.88]
[1768297178760,35.27031585,141.77,141.71,3.40912428]
[1768297178761,0.66598273,141.75,141.71,3.40912428]
[1768297178956,0.66598273,141.75,141.72,3.19136139]
[1768297179151,0.66598273,141.75,141.73,12.88]
[1768297179682,0.66598273,141.76,141.73,23.12685784]
[1768297180062,0.66598273,141.76,141.74,3.19136139]
[1768297180266,0.66598273,141.76,141.73,16.07136139]
[1768297182273,0.66598273,141.76,141.72,3.19136139]
[1768297182463,0.66598273,141.76,141.73,12.88]
[1768297182792,0.66598273,141.76,141.74,12.88]
[1768297184585,0.66598273,141.76,141.72,7.05603079]
[1768297184790,0.66598273,141.76,141.73,12.88]
[1768297185280,7.71935842,141.78,141.73,3.19136139]
[1768297185489,7.71935842,141.78,141.74,12.88]
[1768297185686,0.66598273,141.77,141.74,12.88]
[1768297187388,0.66598273,141.77,141.74,19.93504447]
[1768297189380,0.66598273,141.78,141.74,23.12640586]
[1768297190287,0.66598273,141.78,141.74,19.93504447]
[1768297191567,0.66598273,141.78,141.74,23.12640586]
[1768297195192,3.85734412,141.76,141.72,7.05570624]
[1768297195391,0.66598273,141.76,141.73,19.93555669]
[1768297196189,2.70583743,141.76,141.73,19.93555669]
[1768297197578,2.70583743,141.76,141.74,12.88]
[1768297200786,2.0398547,141.75,141.74,12.88]
[1768297200986,2.0398547,141.75,141.73,12.88]
[1768297201286,2.0398547,141.75,141.73,12.8200586]
[1768297201722,9.76012021,141.76,141.73,12.8200586]
[1768297202209,2.70583743,141.76,141.73,12.8200586]
[1768297202411,0.66598273,141.76,141.73,12.8200586]
[1768297202613,2.70583743,141.77,141.73,19.87539327]
[1768297205512,0.66598273,141.77,141.73,21.91524797]
[1768297209631,0.65595974,141.78,141.74,2.0398547]
[1768297210420,0.65595974,141.78,141.73,37.51456634]
[1768297210625,0.65595974,141.78,141.75,9.09415682]
[1768297210806,0.65595974,141.79,141.76,12.88]
[1768297211013,0.65595974,141.79,141.76,14.9198547]
[1768297213234,0.65595974,141.79,141.76,21.97386524]
[1768297215933,0.65595974,141.79,141.77,12.88]
[1768297216314,0.65595974,141.79,141.76,9.09386524]
[1768297216513,0.65595974,141.79,141.77,12.88]
[1768297217536,0.65595974,141.79,141.76,2.0398547]
[1768297217834,0.65595974,141.79,141.77,12.88]
[1768297218048,0.65595974,141.79,141.76,9.09390367]
[1768297218235,0.65595974,141.79,141.77,12.88]
[1768297219313,0.65595974,141.79,141.77,12.82]
[1768297219924,0.65595974,141.79,141.77,12.76]
[1768297223047,0.71344825,141.77,141.72,6.6801107]
[1768297223222,0.71344825,141.72,141.68,9.09790841]
[1768297223539,2.0398547,141.72,141.69,12.88]
[1768297223741,0.71344825,141.72,141.69,12.88]
[1768297223928,2.0398547,141.71,141.69,12.88]
[1768297224523,0.71344825,141.72,141.66,17.64701712]
[1768297224524,0.71344825,141.69,141.66,12.88]
[1768297224720,2.75330295,141.69,141.66,12.88]
[1768297224940,0.71344825,141.7,141.66,19.93911166]
[1768297225237,2.75330295,141.7,141.66,19.93911166]
[1768297226418,0.71344825,141.7,141.66,21.97896636]
[1768297226621,2.0398547,141.69,141.66,12.88]
[1768297226939,9.81051643,141.7,141.66,12.88]
[1768297227518,0.71344825,141.67,141.61,17.65363662]
[1768297227730,0.71344825,141.67,141.64,7.06002805]
[1768297227937,0.71344825,141.67,141.65,12.88]
[1768297228840,2.0398547,141.68,141.65,12.88]
[1768297230239,2.75330295,141.68,141.65,12.88]
[1768297230844,7.05782125,141.69,141.65,12.88]
[1768297230845,0.71344825,141.69,141.65,21.97943291]
[1768297231149,0.71344825,141.69,141.65,19.93957821]
[1768297231340,0.71344825,141.71,141.68,2.0398547]
[1768297231545,0.71344825,141.71,141.68,14.9198547]
[1768297232257,0.71344825,141.71,141.68,12.88]
[1768297232456,0.71344825,141.71,141.68,14.9198547]
[1768297232755,0.71344825,141.71,141.69,2.0398547]
[1768297233081,0.71344825,141.71,141.68,12.155]
[1768297233253,0.71344825,141.69,141.64,2.75706208]
[1768297233560,0.71344825,141.68,141.64,9.81721374]
[1768297234146,0.71344825,141.68,141.65,0.71720738]
[1768297234458,0.71344825,141.69,141.65,2.75706208]
[1768297234932,7.77120177,141.69,141.65,2.75706208]
[1768297235132,0.71344825,141.69,141.66,2.0398547]
[1768297235834,0.71344825,141.69,141.65,9.81666043]
[1768297236445,0.71344825,141.69,141.65,7.77680573]
[1768297236648,0.71687662,141.68,141.64,2.69708869]
[1768297237954,0.71687662,141.68,141.64,0.65723399]
[1768297238232,0.71687662,141.67,141.61,0.65723399]
[1768297238435,0.71687662,141.64,141.58,0.2]
[1768297238655,2.75673132,141.62,141.58,0.2]
[1768297238853,0.71687662,141.62,141.58,2.89708869]
[1768297239034,0.71687662,141.62,141.59,2.0398547]
[1768297239232,0.71687662,141.62,141.58,2.89708869]
[1768297239457,0.71687662,141.63,141.61,2.0398547]
[1768297239636,0.71687662,141.63,141.59,0.65723399]
[1768297239637,0.71687662,141.63,141.6,2.0398547]
[1768297240962,0.71687662,141.63,141.59,7.71969959]
[1768297241154,0.71687662,141.63,141.6,2.0398547]
[1768297242038,7.77704606,141.64,141.6,0.65723399]
[1768297242238,17.64747981,141.67,141.63,2.0398547]
[1768297242239,0.71687662,141.67,141.63,2.0398547]
[1768297242442,0.71687662,141.66,141.61,0.65723399]
[1768297242660,0.71687662,141.66,141.62,2.0398547]
[1768297243740,0.71687662,141.66,141.62,2.69708869]
[1768297244241,0.71687662,141.66,141.62,9.75807921]
[1768297245048,0.71687662,141.66,141.63,2.0398547]
[1768297245457,0.71687662,141.66,141.62,7.71822451]
[1768297245638,0.71687662,141.66,141.63,2.0398547]
[1768297245970,0.71687662,141.66,141.58,0.85723399]
[1768297245971,0.71687662,141.63,141.58,0.85723399]
[1768297246140,2.0398547,141.61,141.58,0.85723399]
[1768297246342,2.0398547,141.62,141.58,0.85723399]
[1768297247750,2.0398547,141.62,141.58,9.96004426]
[1768297248079,9.81772783,141.63,141.58,9.96004426]
[1768297248259,0.71687662,141.63,141.6,2.0398547]
[1768297248859,7.77668503,141.65,141.61,2.0398547]
[1768297249252,0.71687662,141.64,141.6,2.69708869]
[1768297249762,0.71687662,141.64,141.6,9.75909685]
[1768297249960,0.71687662,141.67,141.63,2.0398547]
[1768297250147,0.71687662,141.67,141.64,2.0398547]
[1768297250555,7.77466088,141.69,141.64,0.65723399]
[1768297250760,9.81451558,141.69,141.65,2.0398547]
[1768297250961,0.71687662,141.68,141.62,0.65723399]
[1768297251150,2.0398547,141.64,141.6,0.65723399]
[1768297251352,2.75673132,141.64,141.6,2.69708869]
[1768297252760,2.75673132,141.64,141.6,0.65723399]
[1768297252962,9.8170618,141.64,141.6,0.65723399]
[1768297253861,0.71687662,141.63,141.58,7.92019724]
[1768297254084,2.75673132,141.63,141.59,2.69708869]
[1768297254371,0.71687662,141.63,141.59,2.69708869]
[1768297254950,0.71687662,141.63,141.59,0.65723399]
[1768297255150,0.71687662,141.63,141.59,2.69708869]
[1768297255355,0.71687662,141.63,141.59,3.85019174]
[1768297256058,0.71687662,141.63,141.59,10.91283023]
[1768297256363,10.97016485,141.64,141.6,0.65723399]
[1768297257147,0.71687662,141.67,141.61,3.85019174]
[1768297257389,0.71687662,141.66,141.63,3.19295775]
[1768297257681,0.71687662,141.66,141.62,3.19295775]
[1768297257857,0.71687662,141.63,141.6,3.19295775]
[1768297258284,0.71687662,141.66,141.6,10.91231843]
[1768297258470,3.90983437,141.65,141.61,3.19295775]
[1768297258651,0.71687662,141.61,141.58,0.2]
[1768297258845,0.71687662,141.6,141.55,0.85723399]
[1768297259052,10.97225358,141.6,141.55,4.05019174]
[1768297259366,7.77929583,141.6,141.56,3.19295775]
[1768297259575,10.97225358,141.6,141.55,4.05019174]
[1768297260661,3.90983437,141.6,141.56,3.85019174]
[1768297261394,0.71687662,141.6,141.56,0.65723399]
[1768297261560,0.71687662,141.6,141.56,3.85019174]
[1768297262076,0.71687662,141.6,141.56,7.72127837]
[1768297262279,0.71687662,141.6,141.56,10.91423612]
[1768297262585,0.71687662,141.64,141.59,3.85019174]
[1768297262789,0.71687662,141.64,141.61,3.19295775]
[1768297263113,0.71687662,141.64,141.62,3.19295775]
[1768297263376,0.71687662,141.64,141.61,3.19295775]
[1768297263583,0.71687662,141.64,141.6,3.85019174]
[1768297264769,3.8713282,141.66,141.62,3.88847129]
[1768297265082,0.67837045,141.62,141.56,0.69551354]
[1768297265382,3.8713282,141.62,141.58,13.74324414]
[1768297265587,3.8713282,141.62,141.58,16.93620189]
[1768297265886,3.8713282,141.62,141.58,17.63171543]
[1768297266087,0.67837045,141.62,141.58,17.63171543]
[1768297266992,0.67837045,141.65,141.61,3.19295775]
[1768297267385,0.65312704,141.64,141.61,10.25455336]
[1768297267690,3.19295775,141.65,141.61,10.9500669]
[1768297267882,3.19295775,141.66,141.62,3.19295775]
[1768297268085,3.19295775,141.66,141.61,10.9500669]
[1768297268986,3.19295775,141.65,141.61,0.69551354]
[1768297269387,3.8713282,141.65,141.6,10.95054658]
[1768297269698,0.67837045,141.65,141.61,10.25458563]
[1768297271284,0.67837045,141.65,141.61,7.06162788]
[1768297271599,0.67837045,141.65,141.62,3.19295775]
[1768297272578,0.67837045,141.65,141.63,3.19295775]
[1768297272777,0.67837045,141.65,141.62,3.19295775]
[1768297273186,0.67837045,141.65,141.61,7.75714142]
[1768297273489,0.67837045,141.65,141.62,3.19295775]
[1768297273695,0.67837045,141.65,141.58,6.6801107]
[1768297273696,0.67837045,141.62,141.56,0.69551354]
[1768297273878,3.19295775,141.6,141.56,0.69551354]
[1768297274083,3.19295775,141.61,141.57,0.69551354]
[1768297275182,10.25464426,141.61,141.57,0.69551354]
[1768297275381,10.91059409,141.61,141.57,0.69551354]
[1768297278992,3.19295775,141.6,141.57,0.69551354]
[1768297279304,10.25519195,141.6,141.57,0.69551354]
[1768297279499,10.91114178,141.6,141.56,0.69473363]
[1768297280705,10.25519195,141.6,141.56,0.69473363]
[1768297282402,10.91114178,141.6,141.56,0.69473363]
[1768297283207,10.25519195,141.6,141.56,0.69473363]
[1768297283513,0.65594983,141.59,141.55,24.03197882]
[1768297283886,0.65594983,141.55,141.53,0.2]
[1768297284100,3.19295775,141.54,141.52,0.89473363]
[1768297284303,3.19295775,141.55,141.52,0.89473363]
[1768297285094,0.65594983,141.56,141.52,0.89473363]
[1768297285286,10.25766396,141.55,141.52,0.89473363]
[1768297285486,3.19295775,141.54,141.52,0.89473363]
[1768297285683,0.65594983,141.52,141.47,0.82937723]
[1768297285887,3.19295775,141.5,141.47,0.82937723]
[1768297286407,3.19295775,141.51,141.47,0.82937723]
[1768297286724,3.19295775,141.5,141.47,0.82937723]
[1768297286883,0.65594983,141.53,141.47,0.82937723]
[1768297287282,3.19295775,141.51,141.47,0.82937723]
[1768297287694,3.19295775,141.51,141.48,0.69473363]
[1768297288788,3.19295775,141.5,141.47,0.1346436]
[1768297288993,3.19295775,141.5,141.47,0.82937723]
[1768297289387,0.65594983,141.48,141.47,1e-08]
[1768297289585,0.65594983,141.48,141.43,3.19295775]
[1768297289586,0.65594983,141.47,141.43,3.19295775]
[1768297289792,3.19295775,141.48,141.44,7.76482993]
[1768297289992,0.65594983,141.46,141.42,6.8801107]
[1768297290285,3.81890759,141.46,141.42,0.89473363]
[1768297290480,0.62594984,141.46,141.42,0.2]
[1768297290710,12.9,141.48,141.42,3.39295775]
[1768297290882,3.19295775,141.46,141.42,0.89473363]
[1768297291083,3.19295775,141.47,141.42,3.39295775]
[1768297291290,3.19295775,141.47,141.42,4.08769138]
[1768297291593,3.19295775,141.48,141.44,3.88769138]
[1768297291906,24.73367229,141.51,141.45,3.88769138]
[1768297292110,0.65594983,141.49,141.45,3.88769138]
[1768297292406,3.19295775,141.5,141.46,3.88769138]
[1768297292782,10.91554598,141.51,141.46,3.88769138]
[1768297293512,7.72258823,141.51,141.46,10.95680127]
[1768297293687,10.91554598,141.51,141.46,10.95680127]
[1768297294094,10.91554598,141.51,141.47,3.88769138]
[1768297294095,3.84890758,141.51,141.47,3.88769138]
[1768297294422,0.65594983,141.47,141.43,0.69473363]
[1768297294588,3.19295775,141.47,141.44,0.65791165]
[1768297294913,0.68468963,141.49,141.45,3.8508694]
[1768297295097,3.87764738,141.49,141.45,3.79086942]
[1768297295298,8.91402837,141.48,141.45,0.59791167]
[1768297295495,8.91402837,141.48,141.42,0.2]
[1768297295496,7.75332609,141.47,141.42,0.2]
[1768297295801,9.598718,141.46,141.42,0.2]
[1768297296206,9.598718,141.45,141.42,0.2]
[1768297297604,0.68468963,141.44,141.4,7.07203556]
[1768297297810,0.68468963,141.43,141.4,15.98606393]
[1768297298305,9.598718,141.45,141.4,16.64397558]
[1768297298908,9.598718,141.45,141.41,8.91402837]
[1768297299109,0.68468963,141.45,141.41,16.64339645]
[1768297299319,0.68468963,141.45,141.42,8.91402837]
[1768297300019,0.68468963,141.48,141.44,9.57194002]
[1768297300215,0.68468963,141.48,141.44,0.65791165]
[1768297300511,9.57348008,141.48,141.44,9.57194002]
[1768297300690,0.65945171,141.48,141.44,9.57194002]
[1768297301717,17.66550041,141.52,141.45,8.91402837]
[1768297301913,8.91402837,141.51,141.47,8.91402837]
[1768297302507,9.598718,141.51,141.47,8.91402837]
[1768297302703,0.68468963,141.53,141.49,0.65791165]
[1768297302908,9.598718,141.53,141.49,9.57194002]
[1768297303306,9.598718,141.53,141.49,8.91402837]
[1768297304016,0.68468963,141.52,141.49,8.91402837]
[1768297304407,0.68468963,141.54,141.5,9.57194002]
[1768297304797,0.68468963,141.54,141.51,8.91402837]
[1768297305702,0.68468963,141.56,141.52,8.91402837]
[1768297305897,0.68468963,141.56,141.47,7.33802235]
[1768297305898,0.68468963,141.52,141.47,7.33802235]
[1768297306203,8.91402837,141.54,141.47,0.65791165]
[1768297306204,9.598718,141.51,141.47,0.65791165]
[1768297306406,0.68468963,141.51,141.47,9.57194002]
[1768297306607,8.91402837,141.51,141.47,9.57194002]
[1768297306829,8.91402837,141.51,141.47,16.6405658]
[1768297307332,9.598718,141.52,141.47,16.6405658]
[1768297307539,9.598718,141.48,141.43,7.72815303]
[1768297307702,8.91402837,141.47,141.44,0.65791165]
[1768297308232,9.598718,141.48,141.44,0.65791165]
[1768297308710,7.75193331,141.5,141.45,9.57194002]
[1768297309023,8.91402837,141.49,141.45,9.57194002]
[1768297310904,0.68468963,141.5,141.46,9.57194002]
[1768297311210,9.598718,141.5,141.46,0.65791165]
[1768297311828,9.598718,141.5,141.46,9.57194002]
[1768297313120,8.91402837,141.5,141.47,0.65791165]
[1768297313424,9.598718,141.5,141.46,8.91402837]
[1768297314211,9.598718,141.5,141.45,7.72748183]
[1768297314424,9.598718,141.5,141.46,0.65791165]
[1768297314625,9.598718,141.5,141.46,9.57194002]
[1768297314828,16.66543981,141.51,141.46,0.65791165]
[1768297315017,16.66543981,141.51,141.46,9.57194002]
[1768297315831,7.75141144,141.51,141.46,16.64095343]
[1768297316006,7.75141144,141.51,141.47,0.65791165]
[1768297316007,0.68468963,141.51,141.47,0.65791165]
[1768297316207,0.68468963,141.51,141.48,8.91402837]
[1768297316607,9.598718,141.52,141.48,8.91402837]
[1768297316804,0.68468963,141.52,141.48,8.91402837]
[1768297317034,30.56161467,141.55,141.44,20.23802235]
[1768297317035,0.68468963,141.5,141.44,20.23802235]
[1768297317217,9.598718,141.48,141.44,0.65791165]
[1768297317418,6.17117127,141.48,141.44,0.65791165]
[1768297317721,0.68468963,141.47,141.43,0.65791165]
[1768297317924,0.68468963,141.47,141.43,5.48648164]
[1768297318739,6.17117127,141.47,141.43,5.48648164]
[1768297319553,13.23987897,141.47,141.43,5.48648164]
[1768297319947,13.23987897,141.47,141.42,7.72885869]
[1768297320131,13.23987897,141.47,141.43,5.48648164]
[1768297320328,13.23987897,141.47,141.44,5.48648164]
[1768297320329,0.68468963,141.47,141.44,5.48648164]
[1768297320525,7.75295544,141.48,141.44,5.48648164]
[1768297320747,0.68468963,141.48,141.44,6.14439329]
[1768297321638,7.75195145,141.5,141.45,6.14439329]
[1768297321825,7.75188365,141.5,141.47,5.48648164]
[1768297322026,7.75188365,141.5,141.46,5.48648164]
[1768297322443,0.68468963,141.49,141.46,5.48648164]
[1768297322947,0.68468963,141.51,141.47,5.48648164]
[1768297323947,0.68468963,141.51,141.47,6.14439329]
[1768297324450,0.68468963,141.53,141.5,5.48648164]
[1768297325032,5.48648164,141.55,141.5,5.48648164]
[1768297325033,6.20805659,141.55,141.51,5.48648164]
[1768297325236,0.72157495,141.55,141.51,6.15639778]
[1768297325434,0.72157495,141.55,141.52,5.48648164]
[1768297325634,13.24662134,141.56,141.52,6.15639778]
[1768297326056,0.69591424,141.56,141.53,5.48648164]
[1768297326231,7.76008199,141.56,141.52,6.15639778]
[1768297326941,5.48648164,141.57,141.53,5.48648164]
[1768297327141,6.18239588,141.57,141.52,13.22238334]
[1768297327328,5.48648164,141.55,141.52,0.66991614]
[1768297328432,5.48648164,141.55,141.51,7.06645602]
[1768297328628,5.48648164,141.55,141.51,12.55293766]
[1768297328942,5.48648164,141.55,141.51,13.2228538]
[1768297329343,13.27227888,141.56,141.51,13.2228538]
[1768297329653,0.72106684,141.54,141.49,7.73718214]
[1768297329852,6.18289891,141.53,141.49,6.15639778]
[1768297330059,6.18289891,141.53,141.49,5.48648164]
[1768297330237,6.20730198,141.52,141.48,6.15639778]
[1768297330439,6.20730198,141.52,141.48,0.66991614]
[1768297331071,0.72057875,141.48,141.43,62.16991614]
[1768297331252,6.20706039,141.48,141.43,0.66991614]
[1768297331444,5.48648164,141.45,141.43,0.66991614]
[1768297331632,5.48648164,141.46,141.43,0.66991614]
[1768297331956,5.48648164,141.46,141.42,0.66991614]
[1768297332136,5.48648164,141.46,141.42,7.74056843]
[1768297332673,6.20805659,141.47,141.43,7.07057938]
[1768297332971,5.48648164,141.46,141.42,6.15639778]
[1768297333136,0.72157495,141.47,141.42,0.66991614]
[1768297333343,5.48648164,141.46,141.42,0.66991614]
[1768297333560,5.48648164,141.46,141.42,6.15639778]
[1768297333963,5.48648164,141.46,141.42,0.66991614]
[1768297335260,5.48648164,141.46,141.42,7.74056211]
[1768297336064,0.68119104,141.42,141.38,0.68929903]
[1768297336249,0.68119104,141.42,141.37,7.7628692]
[1768297336445,5.48648164,141.41,141.37,7.7628692]
[1768297336759,0.68119104,141.42,141.37,13.24935084]
[1768297337145,12.9,141.46,141.39,12.55911761]
[1768297337146,0.68119104,141.43,141.39,12.55911761]
[1768297337349,6.16767268,141.43,141.39,12.55911761]
[1768297337562,6.16767268,141.43,141.39,7.07263597]
[1768297338181,0.68119104,141.43,141.39,7.07263597]
[1768297338341,12.9,141.46,141.34,6.6801107]
[1768297338342,5.48648164,141.41,141.36,0.68929903]
[1768297338547,5.48648164,141.41,141.36,6.17578067]
[1768297338859,6.16767268,141.41,141.36,0.68929903]
[1768297339057,6.16767268,141.41,141.36,13.24955098]
[1768297339264,6.16767268,141.41,141.36,7.76306934]
[1768297339452,5.48648164,141.4,141.36,13.24955098]
[1768297339648,0.68119104,141.41,141.36,7.76306934]
[1768297339874,7.07139688,141.42,141.32,0.68929903]
[1768297339875,0.68119104,141.36,141.32,0.68929903]
[1768297340085,6.16767268,141.36,141.32,5.48648164]
[1768297340288,0.68119104,141.35,141.32,7.07599466]
[1768297340447,0.68119104,141.35,141.32,12.5624763]
[1768297340761,0.68119104,141.37,141.33,5.48648164]
[1768297341144,7.75396521,141.39,141.32,24.7663428]
[1768297341344,0.68119104,141.38,141.34,5.48648164]
[1768297341573,6.16767268,141.38,141.34,5.48648164]
[1768297341862,6.16767268,141.38,141.33,5.48648164]
[1768297342282,0.68119104,141.37,141.31,7.2765131]
[1768297342475,0.68119104,141.37,141.32,5.48648164]
[1768297342681,6.16767268,141.38,141.33,5.48648164]
[1768297342996,6.16767268,141.38,141.34,5.48648164]
[1768297343363,7.75342601,141.4,141.35,5.48648164]
[1768297343666,0.68119104,141.39,141.32,12.9]
[1768297343986,5.48648164,141.38,141.34,5.48648164]
[1768297344185,6.16767268,141.38,141.34,5.48648164]
[1768297344493,0.68119104,141.34,141.3,15.27718411]
[1768297345386,0.58119104,141.33,141.3,15.17718411]
[1768297345585,0.099,141.34,141.3,15.17718411]
[1768297345764,5.58548164,141.34,141.3,15.17718411]
[1768297345964,13.38119104,141.36,141.3,15.86648314]
[1768297346186,5.48648164,141.35,141.3,15.86648314]
[1768297346379,12.56113885,141.35,141.3,28.43005726]
[1768297346671,5.48648164,141.34,141.3,21.35296478]
[1768297346872,7.17365721,141.35,141.3,15.86648314]
[1768297347066,5.48648164,141.34,141.3,21.35296478]
[1768297347261,7.17365721,141.35,141.3,21.35296478]
[1768297347464,12.66013885,141.35,141.3,21.35296478]
[1768297347883,12.66013885,141.35,141.3,15.86648314]
[1768297348095,12.66013885,141.35,141.3,21.35296478]
[1768297348296,7.07465721,141.35,141.31,0.68929903]
[1768297348480,12.56113885,141.35,141.31,0.68929903]
[1768297348965,7.07465721,141.35,141.31,0.68929903]
[1768297349165,12.56113885,141.35,141.31,6.17578067]
[1768297349591,7.07465721,141.35,141.32,0.68929903]
[1768297350085,12.56113885,141.35,141.32,0.68929903]
[1768297350675,7.07465721,141.35,141.32,0.68929903]
[1768297350879,12.56113885,141.35,141.32,0.68929903]
[1768297351280,7.07465721,141.35,141.32,0.68929903]
[1768297351475,12.56113885,141.35,141.32,0.68929903]
[1768297351668,7.07465721,141.35,141.32,0.68929903]
[1768297351991,7.07374807,141.37,141.33,6.17578067]
[1768297352583,12.56022971,141.37,141.33,6.17578067]
[1768297352781,7.07374807,141.37,141.33,6.17578067]
[1768297353088,5.48648164,141.36,141.33,0.68929903]
[1768297353295,0.47362326,141.33,141.28,0.68929903]
[1768297353485,5.48648164,141.31,141.28,0.68929903]
[1768297353791,12.56274585,141.32,141.28,0.68929903]
[1768297353992,12.9,141.34,141.29,0.68929903]
[1768297354193,5.48648164,141.33,141.3,0.68929903]
[1768297354370,12.9,141.34,141.3,0.68929903]
[1768297354574,12.9,141.34,141.31,0.68929903]
[1768297354575,5.48648164,141.34,141.31,0.68929903]
[1768297354775,20.45164944,141.36,141.31,0.68929903]
[1768297354973,5.48648164,141.35,141.31,6.17578067]
[1768297355175,7.07313622,141.38,141.33,0.66373907]
[1768297355379,0.47736912,141.37,141.33,5.48648164]
[1768297355597,5.96385076,141.37,141.32,5.48648164]
[1768297355797,0.47736912,141.37,141.33,0.66373907]
[1768297355996,5.96385076,141.37,141.33,0.66373907]
[1768297356496,13.0376041,141.37,141.33,0.66373907]
[1768297357076,5.48648164,141.36,141.33,0.66373907]